Cogmind - Beta 16 @@@ ROGUE MODE // 2025.12.31 @ 17:17:17 Player: Compilatron Result: Self-destructed Performance ------------- Evolutions (2) 1000 Regions Visited (5) 1000 Robots Destroyed (46) 230 Value Destroyed (1207) 1207 Prototype IDs (2) 40 Alien Tech Used (0) 0 Bonus (0) 0 TOTAL SCORE: 3477 Bonus ------- None Cogmind --------- Core Integrity 118/550 Matter 136/300 Energy 75/100 System Corruption 0% Temperature Cool (0) Movement Walking (260) Ox2 Location -8/Materials Parts ------- > --- POWER (1) -------- (None) > --- PROPULSION (4) --- Aluminum Leg > --- UTILITY (4) ------ Large Storage Unit Advanced Visual Processing Unit Improved Terrain Scan Processor > --- WEAPON (2) ------- Heavy Assault Rifle > --- INVENTORY (15) --- Improved Ion Engine Reflective Plating Splice Drone Bay (6/6) Assault Cannon Flak Cannon Flak Cannon Missile Launcher Missile Launcher Missile Launcher Missile Launcher Heavy Hammer Peak State ------------ > --- POWER ------------ Cooled Ion Engine > --- PROPULSION ------- Light Treads Light Treads Light Treads Compact Wheel > --- UTILITY ---------- Large Storage Unit Propulsion Shielding Light Armor Plating Medium Armor Plating > --- WEAPON ----------- Flak Cannon Flak Cannon > --- INVENTORY -------- Improved Ion Engine Advanced Visual Processing Unit Improved Terrain Scan Processor Reflective Plating Splice Drone Bay Beam Rifle Heavy Assault Rifle Autogun Assault Cannon Missile Launcher Missile Launcher Missile Launcher Missile Launcher Heavy Hammer [Rating: 22] Favorites ----------- Power Cooled Ion Engine Engine Cooled Ion Engine Propulsion Light Treads Treads Light Treads Leg Aluminum Leg Wheel Compact Wheel Utility Large Storage Unit Device Improved Terrain Scanner Storage Large Storage Unit Processor Improved Terrain Scan Processor Protection Light Armor Plating Weapon Autogun Energy Gun Beam Rifle Ballistic Gun Autogun Ballistic Cannon Flak Cannon Launcher Missile Launcher Build | -11 -10 -10 -9 -9 -8 ------- Run | Yrd Mat Min Mat Min Mat Slots Evolved 4 | . . . 2 . 2 Power . | . . . . . . Propulsion 2 | . . . 1 . 1 Utility 2 | . . . 1 . 1 Weapon . | . . . . . . Parts Attached 35 | . 8 1 11 1 14 Power 3 | . 1 . 2 . . Engine 3 | . 1 . 2 . . Core . | . . . . . . Reactor . | . . . . . . Propulsion 10 | . 3 . 3 . 4 Treads 7 | . 1 . 3 . 3 Leg 1 | . . . . . 1 Wheel 2 | . 2 . . . . Hover . | . . . . . . Flight . | . . . . . . Utility 11 | . 2 1 4 1 3 Device 2 | . . 1 . . 1 Storage 1 | . 1 . . . . Processor 2 | . . . . . 2 Hackware . | . . . . . . Protection 6 | . 1 . 4 1 . Artifact . | . . . . . . Weapon 11 | . 2 . 2 . 7 Energy Gun 1 | . . . . . 1 Energy Cannon . | . . . . . . Ballistic Gun 6 | . 2 . 2 . 2 Ballistic Cannon 2 | . . . . . 2 Launcher 2 | . . . . . 2 Special Weapon . | . . . . . . Impact Weapon . | . . . . . . Slashing Weapon . | . . . . . . Piercing Weapon . | . . . . . . Special Melee Weapon . | . . . . . . Unidentified Prototypes 2 | . . 1 1 . . Parts Lost 13 | . 1 . 2 . 10 Power 1 | . . . . . 1 Propulsion 5 | . 1 . . . 4 Utility 4 | . . . 1 . 3 Weapon 3 | . . . 1 . 2 Highest Loss Streak 6 | . 1 . 1 . 6 To Critical Strikes . | . . . . . . Average Backups 11 | . 5 6 12 15 14 Power 1 | . 1 1 1 1 1 Propulsion . | . 2 1 . 1 . Utility 2 | . . . 3 5 4 Weapon 6 | . 2 3 7 8 8 Tool/Special . | . . . . . . Unused Backups 23 | . 10 . 5 . 8 Power 3 | . 1 . . . 2 Propulsion 4 | . 3 . 1 . . Utility 3 | . 2 . . . 1 Weapon 13 | . 4 . 4 . 5 Tool/Special . | . . . . . . Average Slot Usage (%) 87 | . 94 100 88 91 72 Engine 10 | . 14 14 11 11 6 Treads 18 | . 9 14 22 22 21 Leg 2 | . 9 . . . . Wheel 9 | . 8 14 11 11 5 Storage 11 | . 14 14 11 11 9 Protection 11 | . 10 14 11 14 12 Ballistic Gun 19 | . 26 28 22 22 5 Ballistic Cannon 1 | . . . . . 7 Peak Build Rating 22 | . 9 15 18 17 22 Average Rating 13 | . 8 9 15 16 16 On Entrance 10 | 6 6 9 10 16 17 Avg Prop Armor Cover (%) 14 | . 9 9 16 17 19 Naked Turns . | . . . . . . Heaviest Build 48 | 12 34 34 42 38 48 Greatest Support 40 | 20 20 16 40 16 40 Greatest Overweight (x) 6 | . 2 2 2 2 6 Average Overweight (x) 1 | . . 2 1 2 1 Largest Inventory Capacity 15 | . 15 15 15 15 15 Average Capacity 14 | . 12 15 15 15 15 Most Carried 15 | . 8 7 15 15 15 Average Carried 11 | . 5 6 12 15 14 Final Capacity 15 | 8 15 15 15 15 15 Final Carried 15 | 6 5 7 15 15 11 Class Distribution -------------------- 100% | Mutant Dominant Class ---------------- Mutant | -10/Materials Mutant | -10/Mines Mutant | -9/Materials Mutant | -9/Mines Mutant | -8/Materials Resources | -11 -10 -10 -9 -9 -8 ----------- Run | Yrd Mat Min Mat Min Mat Matter Collected 1363 | 200 160 35 473 156 339 Remotely . | . . . . . . Salvage Created 1358 | . 172 . 593 221 372 Parts 100 | . 13 . 50 14 23 Haulers Intercepted 2 | . . . 1 . 1 Recyclers Shooed 1 | . . . . . 1 Parts Field Recycled . | . . . . . . Retrieved Matter . | . . . . . . Parts Self-Destructed . | . . . . . . Prevented . | . . . . . . Parts Restored . | . . . . . . Kills | -11 -10 -10 -9 -9 -8 ------- Run | Yrd Mat Min Mat Min Mat Combat Hostiles Destroyed 43 | . 6 . 17 5 15 Melee 1 | . . . . . 1 Guns 35 | . 6 . 17 5 7 Cannons 7 | . . . . . 7 Classes Destroyed 8 | . 2 . 3 2 1 Hauler 2 | . . . 1 . 1 Watcher 1 | . . . 1 . . Swarmer 17 | . 3 . 8 . 6 Cutter 2 | . . . . . 2 Grunt 13 | . 3 . 4 3 3 Brawler 2 | . . . . 1 1 Duelist 1 | . . . . 1 . Sentry 8 | . . . 5 . 3 Best Kill Streak 5 | . 2 . 5 3 4 Combat Bots Only 5 | . 2 . 5 3 4 Max Kills in Single Turn 2 | . 2 . 2 1 1 Gunslinging 1 | . . . 1 . . Exploded . | . . . . . . Melee 1 | . . . . . 1 Uniques/NPCs Destroyed . | . . . . . . Combat | -11 -10 -10 -9 -9 -8 -------- Run | Yrd Mat Min Mat Min Mat Hostile Shots Fired 363 | . 43 . 99 21 200 Missed 123 | . 16 . 35 9 63 Hits 240 | . 27 . 64 12 137 Melee 3 | . . . . . 3 Projectile 237 | . 27 . 64 12 134 AOE 1 | . . . . . 1 Critical Strikes 8 | . . . 2 . 6 Actively Blocked 1 | . . . . . 1 Damage Taken 2830 | . 300 . 712 129 1689 Core 579 | . 31 . 93 23 432 Absorbed by Shields . | . . . . . . Redirected to Shielding 154 | . . . 100 12 42 Regen/Repaired (Parts) 19 | . . . . . 19 Core Remaining (%) 86 | 100 . 87 . 71 . Volleys Fired 152 | . 20 . 44 15 73 Largest 2 | . 2 . 2 2 2 Hottest 74 | . 46 . 46 46 74 Shots Fired 251 | . 40 . 87 30 94 Gun 209 | . 40 . 87 30 52 Cannon 41 | . . . . . 41 Launcher 1 | . . . . . 1 Special . | . . . . . . Kinetic 232 | . 40 . 87 30 75 Thermal 18 | . . . . . 18 Explosive 1 | . . . . . 1 Electromagnetic . | . . . . . . Robot Hit Streak 13 | . 5 . 13 7 8 Robot Miss Streak 10 | . 2 . 3 2 10 Penetration Max . | . . . . . . Secondary Targets 6 | . 1 . 3 2 . Max Gunslinging Chain 1 | . 1 . 1 1 . Shots Hit Robots 178 | . 22 . 67 23 66 Core Hits 88 | . 8 . 27 8 45 Critical Kills 1 | . . . 1 . . Critical Parts Destroyed 1 | . . . 1 . . Critical Strikes 3 | . . . 2 . 1 Burn 1 | . . . . . 1 Destroy 2 | . . . 2 . . Melee Attacks . | . . . . . . Impact . | . . . . . . Slashing . | . . . . . . Piercing . | . . . . . . Sneak Attacks . | . . . . . . Combat Hostiles . | . . . . . . Follow-up Attacks . | . . . . . . Damage Inflicted 2994 | . 387 . 1062 362 1183 Guns 2308 | . 372 . 1062 362 512 Cannons 616 | . . . . . 616 Explosions 50 | . . . . . 50 Melee . | . . . . . . Ramming 20 | . 15 . . . 5 Kinetic 2719 | . 372 . 1062 362 923 Thermal 205 | . . . . . 205 Explosive 50 | . . . . . 50 Electromagnetic . | . . . . . . Impact . | . . . . . . Slashing . | . . . . . . Piercing . | . . . . . . Highest Corruption . | . . . . . . Average Corruption . | . . . . . . Corruption Purged . | . . . . . . Corruption Blocked . | . . . . . . Overload Shots . | . . . . . . Overflow Damage . | . . . . . . Projectiles . | . . . . . . Explosions . | . . . . . . Melee . | . . . . . . Knockbacks 16 | . 1 . . . 15 Impact 1 | . 1 . . . . Kinetic 14 | . . . . . 14 Secondary 1 | . . . . . 1 Self-Inflicted Damage 38 | . 7 . . . 31 Shots 1 | . . . . . 1 Rammed 4 | . 1 . . . 3 Targets Rammed 5 | . 1 . . . 4 Kicked . | . . . . . . Crushed 1 | . . . . . 1 Highest Temperature 137 | . 137 . 29 10 113 Average Temperature 28 | . 54 . 6 4 36 Received Heat Transfer 954 | . 120 . 213 72 549 Siege Activations . | . . . . . . Martial Activations . | . . . . . . Shielding Activations . | . . . . . . Robots Disrupted . | . . . . . . Combat Hostiles . | . . . . . . Robots Corrupted . | . . . . . . Combat Hostiles . | . . . . . . Parts Fried . | . . . . . . Impact Corruptions . | . . . . . . Robots Melted . | . . . . . . Combat Hostiles . | . . . . . . Parts Melted . | . . . . . . Heat Transferred 592 | . . . . . 592 Parts Sabotaged . | . . . . . . Parts Stolen . | . . . . . . Parts Stripped . | . . . . . . Power Chain Reactions . | . . . . . . Alert | -11 -10 -10 -9 -9 -8 ------- Run | Yrd Mat Min Mat Min Mat Maximum Alert Level . | . . . . . . Low Security (%) 100 | . 100 100 100 100 100 Level 1 . | . . . . . . Level 2 . | . . . . . . Level 3 . | . . . . . . Level 4 . | . . . . . . Level 5 . | . . . . . . High Security . | . . . . . . Max Security . | . . . . . . Peak Influence 172 | . 86 3 172 136 159 Initial 62 | . . 3 . 62 33 Average 63 | . 27 . 77 101 71 Influence Increases 1272 | . 198 . 511 154 409 Destroy 0b10 Robot/C 860 | . 120 . 340 100 300 Destroy 0b10 Robot/NC 15 | . . . 10 . 5 Destroy Leader 196 | . 20 . 94 20 62 Successful Hack 67 | . 28 . 20 19 . Select Force Hacks 30 | . . . 30 . . Disable Machine 15 | . . . . 15 . Destroy Structure 14 | . . . 2 . 12 Lose Combat Pursuer 75 | . 30 . 15 . 30 Influence Decreases 1147 | . 188 10 351 228 370 Entered New Map 158 | . . 7 . 98 53 Time Decay 869 | . 188 3 331 130 217 Lost Part 120 | . . . 20 . 100 Squads Dispatched 5 | . 1 . 2 . 2 Investigation 1 | . . . 1 . . Extermination . | . . . . . . Reinforcement 4 | . 1 . 1 . 2 Assault . | . . . . . . Garrison . | . . . . . . Intercept . | . . . . . . Searches Triggered . | . . . . . . Construction Impeded . | . . . . . . Haulers Reinforced . | . . . . . . Active Scanning Responses . | . . . . . . Cargo Convoy Interrupts . | . . . . . . Stealth | -11 -10 -10 -9 -9 -8 --------- Run | Yrd Mat Min Mat Min Mat Distress Signals 6 | . 1 . 2 . 3 Communications Jammed . | . . . . . . Distress Signals . | . . . . . . Times Spotted 74 | . 17 . 28 5 24 Peak Tracking Total 6 | . 5 . 4 3 6 Tactical Retreats 4 | . 1 . 1 . 2 Traps | -11 -10 -10 -9 -9 -8 ------- Run | Yrd Mat Min Mat Min Mat Traps Triggered 1 | . 1 . . . . Indirectly . | . . . . . . Trap Hack Attempts . | . . . . . . Triggered . | . . . . . . Disarmed . | . . . . . . Reprogrammed . | . . . . . . Reused . | . . . . . . Traps Extracted . | . . . . . . Installed . | . . . . . . Triggered . | . . . . . . Machines | -11 -10 -10 -9 -9 -8 ---------- Run | Yrd Mat Min Mat Min Mat Machines Disabled 1 | . . . . 1 . Max in Single Turn 1 | . . . . 1 . Machines Repaired . | . . . . . . Machines Dismantled . | . . . . . . Machines Sabotaged . | . . . . . . Overloaded Fab Kills . | . . . . . . Hacking | -11 -10 -10 -9 -9 -8 --------- Run | Yrd Mat Min Mat Min Mat Machines Accessed 16 | . 4 1 9 1 1 Terminals 13 | . 4 . 8 1 . Fabricators . | . . . . . . Repair Stations 1 | . . . . . 1 Recycling Units . | . . . . . . Scanalyzers 1 | . . . 1 . . Garrison Access . | . . . . . . Total Hacks 47 | . 11 1 28 5 2 Successful 29 | . 6 1 17 3 2 Failed 17 | . 5 . 10 2 . Catastrophic 2 | . 1 . 1 . . Database Lockouts 1 | . . . 1 . . Manual 37 | . 10 . 23 4 . Terminals 41 | . 11 . 25 5 . Fabricators . | . . . . . . Repair Stations 2 | . . . . . 2 Recycling Units . | . . . . . . Scanalyzers 3 | . . . 3 . . Garrison Access . | . . . . . . Terminal Hacks 11 | . 1 1 6 3 . Robot Analysis 1 | . . . 1 . . Open Door 1 | . . 1 . . . Level Access Points 1 | . . . . 1 . Branch Access Points 2 | . . . 1 1 . Terminal Index 1 | . . . 1 . . Alert Level 1 | . . . 1 . . Zone Layout 4 | . 1 . 2 1 . Fabricator Hacks . | . . . . . . Repair Station Hacks 2 | . . . . . 2 Scan Component 1 | . . . . . 1 Repair 1 | . . . . . 1 Recycling Unit Hacks . | . . . . . . Scanalyzer 2 | . . . 2 . . Insert Component 1 | . . . 1 . . Analyze 1 | . . . 1 . . Garrison Access Hacks . | . . . . . . Unauthorized Hacks 14 | . 5 . 9 . . Terminals 13 | . 5 . 8 . . Track 1 | . 1 . . . . Assimilate 2 | . . . 2 . . Botnet 8 | . 3 . 5 . . Operators 2 | . 1 . 1 . . Fabricators . | . . . . . . Repair Stations . | . . . . . . Recycling Units . | . . . . . . Scanalyzers 1 | . . . 1 . . Extract 1 | . . . 1 . . Garrison Access . | . . . . . . Data Cores Recovered . | . . . . . . Used . | . . . . . . Hacking Detections 15 | . 4 . 9 1 1 Full Trace Events . | . . . . . . Feedback Events . | . . . . . . Feedback Blocked . | . . . . . . Robot Schematics Acquired . | . . . . . . Robots Built . | . . . . . . Authchips . | . . . . . . Time . | . . . . . . Total Robot Build Rating . | . . . . . . Part Schematics Acquired 4 | . . . 4 . . Parts Built . | . . . . . . Authchips . | . . . . . . Time . | . . . . . . Total Part Build Rating . | . . . . . . Part Studies Acquired . | . . . . . . Parts Repaired 1 | . . . . . 1 Time 26 | . . . . . 26 Parts Recycled . | . . . . . . Recycled Matter . | . . . . . . Retrieved Matter . | . . . . . . Retrieved Components . | . . . . . . Parts Scanalyzed 1 | . . . 1 . . Part Schematics Acquired 1 | . . . 1 . . Parts Damaged . | . . . . . . Bothacking | -11 -10 -10 -9 -9 -8 ------------ Run | Yrd Mat Min Mat Min Mat Used RIF Installer . | . . . . . . Robots Hacked . | . . . . . . Non-combat . | . . . . . . Combat . | . . . . . . Robot Hacks Applied . | . . . . . . Relay Couplers Released . | . . . . . . Fabnet Peak Effective % . | . . . . . . Robots Rewired . | . . . . . . Allies Hacked . | . . . . . . Hacks Repelled . | . . . . . . Allies | -11 -10 -10 -9 -9 -8 -------- Run | Yrd Mat Min Mat Min Mat Total Allies 1 | . . . 1 . . Largest Group 1 | . . . 1 1 1 Highest-Rated Group 10 | . . . 10 10 10 Highest-Rated Ally 10 | . . . 10 10 10 Total Orders . | . . . . . . Ally Attacks . | . . . . . . Total Damage . | . . . . . . Kills . | . . . . . . Allies Corrupted . | . . . . . . Allies Melted . | . . . . . . Intel | -11 -10 -10 -9 -9 -8 ------- Run | Yrd Mat Min Mat Min Mat Active Infowar (turns) 66 | . . . . . 66 Optics 64 | . . . . . 64 Terrain 27 | . . . . . 27 Robot Analysis Total 1 | . . . 1 . . Derelict Logs Recovered 2 | . . 1 . 1 . Drone Launches . | . . . . . . Drone Recoveries . | . . . . . . Exploration | -11 -10 -10 -9 -9 -8 ------------- Run | Yrd Mat Min Mat Min Mat Turns Passed 2491 | . 569 145 953 277 547 Spaces Moved 1483 | 1 393 97 596 177 219 Core 3 | . . . . . 3 Treads 28 | . . . 3 . 25 Legs 124 | 1 123 . . . . Wheels 1328 | . 270 97 593 177 191 Hover . | . . . . . . Flight . | . . . . . . Fastest Speed 100 | 120 100 130 130 130 130 Average Speed 129 | 120 117 130 130 130 145 Slowest Speed 350 | 120 190 130 320 130 350 Overloaded Moves . | . . . . . . Propulsion Burnouts . | . . . . . . Robots Hopped . | . . . . . . Potential Cave-ins . | . . . . . . Cave-ins Triggered . | . . . . . . Exploration Rate (%) 31 | 2 63 18 59 28 19 Regions Visited 5 Branch Regions 2 Pre-discovered Areas 1 | . . . . 1 . Known Exits Taken 2 | . . . 1 1 . Unknown Exits Taken 3 | 1 1 1 . . . Scrap Searched 3 | . . 1 . 2 . Spaces Dug . | . . . . . . Terrain Destroyed 11 | . . . . . 11 Melee . | . . . . . . Projectile . | . . . . . . AOE 11 | . . . . . 11 Terrain Rammed . | . . . . . . Walls Destroyed . | . . . . . . Machines Disabled . | . . . . . . Actions | -11 -10 -10 -9 -9 -8 --------- Run | Yrd Mat Min Mat Min Mat Total 1841 | . 467 115 703 196 360 Wait 103 | . 30 15 23 4 31 Move 1478 | . 392 96 595 176 219 Hop . | . . . . . . Pick Up 34 | . 8 2 17 . 7 Fast Attach 7 | . 1 . 3 1 2 Attach 17 | . 5 . 3 . 9 Detach 2 | . . . 1 . 1 Swap 17 | . 4 2 5 . 6 Drop 26 | . 6 . 12 . 8 Fire 152 | . 20 . 44 15 73 Melee . | . . . . . . Ram 1 | . 1 . . . . Kick . | . . . . . . Crush 4 | . . . . . 4 Escape Stasis . | . . . . . . Rewire . | . . . . . . Trap . | . . . . . . Miscellaneous . | . . . . . . Route ------- -11/Scrapyard -10/Materials (discovered 3 exits: *Mat / *Min x2) -10/Mines -9/Materials (discovered 3 exits: *Mat x2 / *Min) -9/Mines (discovered 2 exits: *Mat x2) -8/Materials (discovered 1 exit: *Sto) History --------- Turn | Location | Event 1 | -11/Scrapyard | Discovered new exit (range 0) 1 | -11/Scrapyard | Entered Materials 125 | -10/Materials | Discovered new exit (range 10) 152 | -10/Materials | Discovered new exit (range 6) 314 | -10/Materials | Build established: Mutant 511 | -10/Materials | Discovered new exit (range 8) 570 | -10/Materials | Entered Mines 579 | -10/Mines | Found the Drone Emporium 585 | -10/Mines | Found Prototype Device 586 | -10/Mines | Identified Splice Drone Bay 674 | -10/Mines | Discovered new exit (range 8) 715 | -10/Mines | Entered Materials 715 | -9/Materials | Evolved 2 slots: Propulsion x1, Utility x1 988 | -9/Materials | Central database locked down 1037 | -9/Materials | Discovered new exit (range 8) 1428 | -9/Materials | Discovered new exit (range 16) 1637 | -9/Materials | Identified exit to Mines 1668 | -9/Materials | Entered Mines 1668 | -9/Mines | Accompanied by 1 ally 1669 | -9/Mines | YI-UF0 nonchalantly dropped a Grenade Launcher on the ground 1673 | -9/Mines | Met a Derelict bent on vengeance 1738 | -9/Mines | Identified exit to Materials 1888 | -9/Mines | Learned location of Zion (-6) 1945 | -9/Mines | Entered Materials 1945 | -8/Materials | Accompanied by 1 ally 1945 | -8/Materials | Evolved 2 slots: Propulsion x1, Utility x1 1946 | -8/Materials | Identified exit to Storage 2011 | -8/Materials | Repaired Com. Wheel 2405 | -8/Materials | Lost 6 parts (1p3n1u1w) 2466 | -8/Materials | Core integrity fell below 50% 2492 | -8/Materials | Self-destructed Last Messages --------------- 02439_ K-01 Serf collects debris. 02448_ G-47 Trooper suffers critical hit (Burn). 02451_ K-01 Serf collects debris. 02453_ Imp. Terrain Scanner destroyed. 02455_ K-01 Serf collects debris. 02457_ Critical hit (Burn: +37). 02458_ K-01 Serf collects debris. 02462_ Lgt. Treads destroyed. 02464_ K-01 Serf collects debris. 02467_ G-47 Trooper destroyed. 02467_ K-01 Serf collects debris. 02470_ Critical hit (Burn: +37). 02470_ K-01 Serf collects debris. 02474_ Beam Rifle destroyed. 02474_ K-01 Serf collects debris. 02480_ Critical hit (Burn: +37). 02481_ K-01 Serf collects debris. 02485_ Critical hit (Burn: +37). 02485_ Acquired Aluminum Leg. 02489_ K-01 Serf collects debris. Map ----- +----------------------------------------------------+ | ?????????????????????????????????????????????????? | | ?????????????????? ???? ???????????????????????? | | ??????????????????????? ???????????????????????? | | ?????????????#????????# #??????????????????????? | | ????????????????????#?? + ?????????????????????? | | ????????????????#???#?# #?? ??????????????????? | | ????????? ?? ????? ?? ##??#??????????????????? | | ????????????????#?????#s #?#??#?????????????????? | | ???????????????????? ?# # ???????????????????? | | ??????????????????"???# # ??? ?????????????????? | | ???????????? ???"?? ??# # ?????#???????????????? | | ?????????????? ? ?? ? # +?? ?? ????????????????? | | ?##+################### #? ?????#??????????????? | | ! #%= #????? ????#???????????? | | # #?#?#??????????????????? | | ! # #????????#??#??????????? | | ???##???######### [# #??#?#?###?????????????? | | ????#????##??#?## [ # #??????????#???????????? | | ????????#######?## =* * #?##???????????????????? | | ???????# ?# [ * k#??????????????######### | | ???????# # * #?#?????#??????# ] | | ???????# w #?????????#????# | | ?????#?# # ##????##??#?#??# | | ???????# ####### #???#???#?????## | | ???????#? ??#????# ####?????????#?######### | | ???????????????#?# @ #????##?#????????????? | | ?????????????????# % #?????????###????????? | | ?????????????????# g=g #?#?#????????????????? | | ?????????????#?#?######## #????#???????????????? | | ????????????????????????# #??##?#??????????????? | | ????????????????????#??## ###?#????????????????? | | ??????????????????????### ##??#????#???????????? | | ???????????????#??##???# ##################### | | ???????????????????????# =! | | ???????????????????#??## >[ | | ????????????????????##?# * | | ??????????????????????## ##################### | | ???????????????????????#######???????????????????? | | ?????????????????????????????????????????????????? | | ?????????????????????????????????????????????????? | | ?????????????????????????????????????????????????? | | ?????????????????????????????????????????????????? | | ?????????????????????????????????????????????????? | | ?????????????????????????????????????????????????? | | ?????????????????????????????????????????????????? | | ?????????????????????????????????????????????????? | | ?????????????????????????????????????????????????? | | | | | | | +----------------------------------------------------+ Best States ------------- Heat Dissipation 31 Energy Generation 14 Energy Capacity 280 Matter Stores 300 Matter Capacity 300 Sight Range 20 Terrain Scan Range 16 Terrain Scan Density 110 Armor Coverage 225 Propulsion Shielding 66 Evasion (%) 55 Recoil Reduction 2 Item Schematics ----------------- Med. Armor Plating | -9/Materials | Scanalyzed Imp. Ion Engine | -9/Materials | Extracted Imp. Aluminum Leg | -9/Materials | Extracted Maul | -9/Materials | Extracted Robot Schematics ------------------ None Fabricated ------------ Nothing Repaired ---------- Com. Wheel | 36% | -8/Materials Studied --------- None Alien Tech Used ----------------- None Achievements -------------- None Challenges ------------ None Game ------ Seed SeismicCoreMagmablaster Manual? 0 Play Time 00:23:29 Cumulative 85.3 hours Start 2025.12.31 @ 16:56:16 End 2025.12.31 @ 17:17:17 Sessions 1 Manual Loads 0 Difficulty Rogue Special Mode None Game No. 137 Rogue 113 Adventurer 20 Explorer 4 Win Type - Total 1 Types 0/0/0/1/0/0/0/0/0/0 Lore% 55 Gallery% 45 Achievement% 36 Wizard Run 0 Options --------- Layout 1 ASCII 0 Keyboard 0 Movement Numpad Keybinds 0 Fullscreen 2 Font 24/Smallcaps Map View 50x35 Zoom Use 0% Tactical HUD 1 Map Filters NONE Filters NONE Steam 1 RUN: 4d353828-75be-4bdc-a616-ae883521b27c